bitfinex-derivatives/quotes_ETHF0:USTF0_20241023
["timestamp","ask_amount","ask_price","bid_price","bid_amount"]
[1729699495697,4.14105588,2538.1,2538.0,0.39425]
[1729699495891,8.08105588,2538.1,2538.0,0.39425]
[1729699497006,8.08105588,2538.1,2537.6,1.5504]
[1729699497007,11.16105588,2538.1,2537.6,1.5504]
[1729699497194,11.16105588,2538.1,2537.7,0.39431]
[1729699497195,3.08,2537.8,2537.7,0.39431]
[1729699497396,3.08,2538.0,2537.8,0.39429]
[1729699497595,4.56926575,2537.8,2537.7,0.3943]
[1729699497895,5.32526575,2537.9,2537.7,0.3943]
[1729699498095,0.756,2537.9,2537.7,0.3943]
[1729699498295,5.37806575,2537.8,2537.7,0.3943]
[1729699499098,9.31886575,2537.8,2537.5,3.2078]
[1729699499293,9.31886575,2537.8,2537.6,0.39431]
[1729699499294,0.8009,2537.7,2537.6,0.39431]
[1729699499601,5.20005507,2537.7,2537.6,0.39431]
[1729699501296,4.39915507,2537.7,2537.6,0.39431]
[1729699501497,0.756,2537.9,2537.6,0.39431]
[1729699501498,0.98524,2539.1,2538.2,0.39423]
[1729699501697,1.0084,2538.4,2538.2,0.39423]
[1729699502007,5.6152,2538.6,2538.0,6.68206]
[1729699502008,4.45408384,2538.1,2538.0,6.68206]
[1729699502209,3.08,2538.9,2538.3,0.98553]
[1729699502407,1.0377,2538.8,2538.6,0.39416]
[1729699502603,4.53424561,2538.7,2538.6,0.39416]
[1729699502802,5.57194561,2538.8,2538.4,4.2031]
[1729699503004,1.0377,2538.8,2538.7,0.39415]
[1729699503204,1.10376419,2538.8,2538.7,0.39415]
[1729699503400,5.57194561,2538.8,2538.7,0.39415]
[1729699504302,4.53424561,2538.8,2538.7,3.47415]
[1729699504508,3.35528011,2539.3,2538.7,3.2078]
[1729699504698,0.06607529,2539.2,2539.0,3.6019]
[1729699504904,3.08,2539.1,2539.0,3.2078]
[1729699505102,7.47857952,2539.1,2538.8,3.2078]
[1729699505297,7.57334877,2539.1,2538.8,3.60193]
[1729699505504,7.57334877,2539.1,2538.8,3.2078]
[1729699505505,7.96744877,2539.1,2538.8,3.2078]
[1729699505806,0.39411,2539.0,2538.8,3.2078]
[1729699506109,7.57334877,2539.1,2538.8,3.2078]
[1729699506110,3.08,2539.1,2538.9,0.39412]
[1729699506407,3.08,2539.1,2538.8,3.2078]
[1729699506408,4.41239602,2538.9,2538.8,3.2078]
[1729699506603,4.41239602,2539.0,2538.8,3.60194]
[1729699506807,1.0494,2538.9,2538.8,3.2078]
[1729699507011,8.46193,2538.9,2538.6,0.39416]
[1729699507315,0.9872,2538.8,2538.7,0.39415]
[1729699507701,9.24590242,2538.8,2538.7,0.39415]
[1729699508106,5.30670242,2538.8,2538.3,4.2612]
[1729699508306,5.30670242,2538.8,2538.7,0.39415]
[1729699508708,5.30670242,2538.8,2538.3,3.2078]
[1729699508904,5.70084242,2538.8,2538.5,0.39417]
[1729699509914,5.70084242,2538.8,2538.3,3.2078]
[1729699510113,5.70084242,2538.8,2538.5,0.39418]
[1729699510409,4.71365242,2538.8,2538.3,3.2078]
[1729699510606,4.71365242,2538.8,2538.5,0.39418]
[1729699511113,0.39416,2538.7,2538.5,0.39418]
[1729699511508,4.59229771,2538.6,2538.4,0.39419]
[1729699511701,4.19812771,2538.6,2538.5,0.39418]
[1729699512011,4.40202433,2538.7,2538.6,0.39417]
[1729699512207,2.1277,2538.9,2538.4,2.0854]
[1729699512405,1.0494,2538.9,2538.8,0.39414]
[1729699512807,5.38410222,2538.9,2538.8,0.39414]
[1729699513003,5.38410222,2538.9,2538.5,41.7828]
[1729699513208,5.77822222,2538.9,2538.7,0.39414]
[1729699513510,5.38410222,2538.9,2538.5,41.7828]
[1729699513815,5.38410222,2538.9,2538.7,0.39414]
[1729699513816,5.77822222,2538.9,2538.7,0.39414]
[1729699514510,0.39414,2538.8,2538.6,0.39416]
[1729699514710,8.46410222,2538.9,2538.5,40.8]
[1729699515014,8.46410222,2538.9,2538.4,2.0854]
[1729699515015,7.48696384,2538.7,2538.4,2.0854]
[1729699515312,7.48696384,2538.7,2538.0,4.246]
[1729699515313,0.3942,2538.4,2538.2,0.39422]
[1729699515613,4.27818887,2538.3,2538.2,0.39422]
[1729699516111,4.27818887,2538.3,2538.0,5.243]
[1729699516112,4.67240887,2538.3,2538.1,0.39424]
[1729699516301,4.67240887,2538.3,2538.0,5.243]
[1729699516302,4.27818887,2538.3,2538.0,2.0352]
[1729699516502,4.27818887,2538.3,2537.9,0.39427]
[1729699516503,0.39425,2538.1,2537.9,0.39427]
[1729699516710,4.27818887,2538.3,2538.0,0.39426]
[1729699516906,3.04121,2538.4,2537.7,6.31727]
[1729699516907,2.0557,2538.4,2537.7,6.31727]
[1729699517214,4.52356894,2538.2,2538.0,0.39425]
[1729699517413,0.39425,2538.1,2537.9,0.39427]
[1729699517614,4.88344276,2538.1,2537.9,0.39427]
[1729699517812,1.0121,2538.0,2537.9,0.39427]
[1729699518210,5.50129276,2538.0,2537.9,0.39427]
[1729699519012,4.48919276,2538.0,2537.9,0.39427]
[1729699519213,4.48919276,2538.0,2537.9,3.60207]
[1729699519416,4.48919276,2538.0,2537.9,0.39427]
[1729699519612,4.48919276,2538.0,2537.9,3.60207]
[1729699520818,4.48919276,2538.0,2537.9,0.39427]
[1729699522813,4.48919276,2538.0,2537.7,6.18947]
[1729699522814,4.48919276,2538.0,2537.7,5.2037]
[1729699523014,2.32429852,2538.4,2537.7,5.2037]
[1729699523015,4.11572347,2538.2,2537.7,2.1237]
[1729699523207,3.08,2538.3,2537.7,2.1237]
[1729699523208,0.39426,2538.0,2537.7,2.1237]
[1729699523407,0.39426,2538.0,2537.8,0.39429]
[1729699523610,4.11572347,2537.9,2537.7,2.1237]
[1729699523813,4.11572347,2537.9,2537.5,0.39433]
[1729699524122,2.3711,2537.8,2537.6,0.39432]
[1729699524416,2.3711,2537.8,2537.4,2.0163]
[1729699524417,4.11572347,2537.7,2537.5,40.8]
[1729699524621,4.51003347,2537.7,2537.5,0.39433]
[1729699524923,4.51003347,2537.7,2537.6,0.39432]
[1729699525122,4.11572347,2537.7,2537.6,0.39432]
[1729699525512,4.11572347,2537.7,2537.4,2.0163]
[1729699525721,4.51004347,2537.7,2537.6,0.39432]
[1729699526017,4.11572347,2537.7,2537.4,2.0163]
[1729699526317,4.11572347,2537.7,2537.5,0.39433]
[1729699526617,4.51004347,2537.7,2537.5,0.39433]
[1729699526813,4.51004347,2537.7,2537.4,5.2241]
[1729699526814,4.11572347,2537.7,2537.4,5.2241]
[1729699527020,0.39434,2537.6,2537.4,2.0163]
[1729699527215,0.39437,2537.3,2537.1,3.2078]
[1729699527418,0.39437,2537.3,2536.7,3.2078]
[1729699527419,3.08,2537.3,2536.7,3.2078]
[1729699527626,0.9859,2537.4,2536.6,2.0763]
[1729699527627,3.08,2537.0,2536.6,2.0763]
[1729699527921,0.39443,2537.0,2536.7,0.39445]
[1729699528109,4.1396,2537.2,2536.7,0.39445]
[1729699528110,4.54926036,2536.9,2536.7,0.39445]
[1729699528313,0.39448,2536.7,2536.4,3.6023]
[1729699528514,3.08,2537.0,2536.4,3.2078]
[1729699528714,4.1396,2537.2,2536.5,2.0962]
[1729699528918,0.06601852,2537.1,2536.5,3.08242]
[1729699529117,4.44747784,2537.0,2536.9,0.39442]
[1729699529413,4.1396,2537.2,2536.7,3.2078]
[1729699529414,4.534,2537.2,2536.7,3.2078]
[1729699529613,0.28561315,2537.4,2536.7,3.2078]
[1729699529924,4.13796791,2537.0,2536.9,0.39443]
[1729699530218,0.39439,2537.2,2537.0,0.39441]
[1729699530525,4.53235791,2537.2,2537.0,0.39441]
[1729699530826,0.39441,2537.1,2536.9,0.39442]
[1729699531014,0.39439,2537.2,2537.0,0.39441]
[1729699531220,4.52009965,2537.1,2537.0,0.39441]
[1729699531420,0.39439,2537.2,2537.0,0.39441]
[1729699531620,4.5744643,2537.1,2536.9,0.39443]
[1729699532029,0.39441,2537.1,2536.9,0.39443]
[1729699532220,4.5744743,2537.0,2536.8,0.39444]
[1729699532617,0.39442,2537.0,2536.8,0.39444]
[1729699532820,4.65976195,2536.9,2536.7,3.60225]
[1729699533219,4.65976195,2536.9,2536.7,0.39445]
[1729699533220,0.39443,2536.9,2536.7,0.39445]
[1729699533419,0.39446,2536.7,2536.5,2.0962]
[1729699533624,4.26533195,2536.8,2536.5,2.0962]
[1729699533929,4.1858,2537.1,2536.6,0.39447]
[1729699533930,4.50277993,2536.9,2536.6,0.39447]
[1729699534113,4.10832993,2536.7,2536.6,0.39447]
[1729699534313,4.10832993,2536.7,2536.6,3.47447]
[1729699534525,1.50016,2537.4,2536.9,0.98609]
[1729699534826,5.45778853,2537.4,2537.1,0.39439]
[1729699535013,3.08,2537.3,2537.1,0.39439]
[1729699535415,3.08,2537.3,2537.2,0.39439]
[1729699535818,4.14308069,2537.3,2537.2,0.39439]
[1729699536119,4.14308069,2537.4,2537.0,2.1179]
[1729699536415,6.2878,2537.5,2537.0,2.1179]
[1729699536621,4.54980816,2537.4,2537.2,0.39438]
[1729699537224,4.15544816,2537.4,2537.1,0.39439]
[1729699537529,0.39439,2537.2,2537.0,43.31231]
[1729699537823,4.49672758,2537.1,2537.0,43.31231]
[1729699538324,3.08,2537.3,2537.0,47.25391]
[1729699538525,3.47438,2537.3,2537.1,0.39439]
[1729699538723,4.31133025,2537.2,2537.1,0.39439]
[1729699539625,4.31133025,2537.2,2537.0,42.9179]
[1729699539926,4.70572025,2537.2,2537.0,43.3123]
[1729699540123,0.39442,2537.0,2536.8,0.39444]
[1729699540427,4.7086707,2536.9,2536.7,2.42535]
[1729699540627,0.39447,2536.7,2536.5,0.39449]
[1729699540829,0.39448,2536.6,2536.5,0.39449]
[1729699541028,4.36225488,2536.6,2536.5,0.39449]
[1729699541332,0.3945,2536.5,2536.4,2.0309]
[1729699541530,0.3945,2536.5,2536.1,3.2078]
[1729699541531,0.39451,2536.4,2536.1,3.2078]
[1729699541727,0.39451,2536.4,2536.3,0.39453]
[1729699541934,4.40804669,2536.3,2536.2,1.50043]
[1729699542125,4.40804669,2536.4,2536.3,0.39453]
[1729699542321,1.0826,2536.5,2536.2,1.1059]
[1729699542526,1.0826,2536.5,2536.3,0.39453]
[1729699542527,4.40804669,2536.4,2536.3,0.39453]
[1729699542724,4.80255669,2536.4,2536.3,0.39453]
[1729699543231,4.40804669,2536.4,2536.3,0.39453]
[1729699543729,4.40804669,2536.4,2536.3,1.44353]
[1729699543925,4.48706,2536.8,2536.3,5.38593]
[1729699544122,4.0926,2536.8,2536.6,0.39447]
[1729699544325,4.43354309,2536.7,2536.6,0.39447]
[1729699544523,4.82800309,2536.7,2536.5,3.60228]
[1729699544733,4.43354309,2536.7,2536.6,0.39448]
[1729699545428,4.43354309,2536.7,2536.2,1.1059]
[1729699545429,7.51354309,2536.7,2536.2,1.1059]
[1729699545627,3.08,2536.4,2536.3,0.39453]
[1729699545826,3.08,2536.4,2536.2,1.1059]
[1729699546027,1.39563,2536.3,2536.1,44.40235]
[1729699546229,2.41753,2536.3,2536.1,44.40235]
[1729699546538,4.50858667,2536.2,2536.1,3.60235]
[1729699546730,4.90312667,2536.2,2536.1,3.60235]
[1729699547233,4.90312667,2536.2,2536.1,3.2078]
[1729699547434,4.90312667,2536.2,2536.1,3.60236]
[1729699547634,4.90312667,2536.2,2536.1,3.2078]
[1729699547635,7.98312667,2536.2,2536.1,3.2078]
[1729699547823,4.90312667,2536.2,2536.1,3.2078]
[1729699548027,4.50858667,2536.2,2536.1,3.60236]
[1729699551241,4.90312667,2536.2,2536.1,3.60236]
[1729699551428,4.50858667,2536.2,2536.1,3.60236]
[1729699552237,4.50858667,2536.2,2536.1,7.54556]
[1729699552436,1.083,2536.6,2536.5,0.3945]
[1729699552634,2.59106,2537.0,2536.3,0.98631]
[1729699552635,1.605,2537.0,2536.3,0.98631]
[1729699552831,4.2908,2536.9,2536.4,3.06498]
[1729699553038,4.90641948,2536.8,2536.7,0.39445]
[1729699553537,4.51196948,2536.8,2536.7,0.39445]
[1729699554834,4.90641948,2536.8,2536.7,0.39445]
[1729699555032,4.51196948,2536.8,2536.7,0.39445]
[1729699555842,4.51196948,2536.8,2536.6,0.39447]
[1729699556038,4.51196948,2536.8,2536.5,3.2078]
[1729699556239,4.51196948,2536.8,2536.7,0.39446]
[1729699556540,4.51196948,2536.8,2536.5,4.19404]
[1729699556541,4.90641948,2536.8,2536.6,0.39447]
[1729699556843,4.90641948,2536.8,2536.7,0.39446]
[1729699557039,4.51196948,2536.8,2536.7,0.39446]
[1729699557544,4.90641948,2536.8,2536.7,0.39446]
[1729699557842,4.51196948,2536.8,2536.7,0.39446]
[1729699558244,4.51196948,2536.8,2536.7,3.47446]
[1729699558436,4.51196948,2536.8,2536.7,0.39446]
[1729699558737,4.51196948,2536.8,2536.7,4.33686]
[1729699558943,4.51238,2537.3,2537.1,0.3944]
[1729699559140,4.51238,2537.3,2537.1,0.39439]
[1729699559340,4.52947519,2537.2,2537.1,0.3944]
[1729699560937,0.3944,2537.1,2537.0,0.39442]
[1729699561334,0.39442,2537.0,2536.9,1.0547]
[1729699561843,0.39445,2536.8,2536.7,0.39446]
[1729699562141,4.85658921,2536.8,2536.7,0.39446]
[1729699562347,0.39447,2536.7,2536.6,0.39447]
[1729699562845,0.39446,2536.8,2536.7,0.39446]
[1729699563039,2.1003,2536.9,2536.5,3.2078]
[1729699563248,0.39447,2536.7,2536.6,0.39446]
[1729699563740,4.89241072,2536.7,2536.6,0.39446]
[1729699563946,0.39448,2536.6,2536.5,3.2078]
[1729699564138,7.57794072,2536.7,2536.4,1.4492]
[1729699564344,0.98613,2536.8,2536.1,3.60235]
[1729699564345,0.39454,2536.2,2536.1,3.60235]
[1729699564850,4.59469773,2536.2,2536.1,3.2078]
[1729699565143,0.39456,2536.1,2536.0,0.39457]
[1729699565445,4.59471773,2536.1,2536.0,0.39457]
[1729699566338,4.20015773,2536.1,2536.0,0.39457]
[1729699566747,0.39458,2536.0,2535.8,0.3946]
[1729699567248,0.39458,2536.0,2535.8,0.39459]
[1729699567446,4.3878761,2535.9,2535.8,0.39459]
[1729699568150,4.7824661,2535.9,2535.7,0.39461]
[1729699568344,4.3878761,2535.9,2535.7,0.39461]
[1729699568542,3.08,2536.1,2535.6,3.2078]
[1729699568543,0.3946,2535.8,2535.6,3.60242]
[1729699568751,3.08,2535.9,2535.6,3.2078]
[1729699569043,4.12443576,2535.7,2535.6,0.39463]
[1729699569241,4.12443576,2535.9,2535.8,0.3946]
[1729699569452,0.39454,2536.2,2536.1,0.39455]
[1729699569650,2.1072,2536.3,2535.8,3.2078]
[1729699569947,3.08,2536.6,2536.1,3.2078]
[1729699570156,0.39452,2536.4,2536.2,0.39454]
[1729699570344,1.0496,2536.3,2536.1,3.2078]
[1729699570650,1.0496,2536.3,2536.2,0.39454]
[1729699570651,5.56355509,2536.3,2536.2,0.39454]
[1729699570847,5.56355509,2536.3,2536.1,3.2078]
[1729699570848,5.95808509,2536.3,2536.1,3.60235]
[1729699571046,5.56355509,2536.3,2536.1,3.60235]
[1729699571261,4.51395509,2536.3,2536.2,0.39454]
[1729699571463,4.51395509,2536.3,2536.1,3.2078]
[1729699571655,4.90848509,2536.3,2536.1,3.60235]
[1729699571856,4.11806132,2536.4,2536.1,3.2078]
[1729699572057,1.4256,2536.5,2536.3,0.39453]
[1729699572257,4.11806132,2536.3,2536.1,3.2078]
[1729699572458,4.11806132,2536.3,2536.2,0.39454]
[1729699572666,1.47029,2536.6,2536.1,3.2078]
[1729699572667,4.51256132,2536.5,2536.1,3.2078]
[1729699572859,1.0758,2536.6,2536.2,0.39453]
[1729699572860,4.12329813,2536.3,2536.2,0.39453]
[1729699573161,4.12329813,2536.4,2536.3,0.39453]
[1729699573357,4.51779813,2536.5,2536.3,0.39453]
[1729699573558,0.3945,2536.5,2536.3,0.39453]
[1729699573865,4.156071,2536.4,2536.1,3.2078]
[1729699574061,4.156071,2536.4,2536.3,0.39453]
[1729699574264,4.156071,2536.5,2536.3,0.39453]
[1729699574467,4.55029,2536.6,2536.1,3.2078]
[1729699574468,4.1558,2536.6,2536.1,3.2078]
[1729699574871,4.26327914,2536.5,2536.3,0.39451]
[1729699575166,4.65777914,2536.5,2536.3,0.39451]
[1729699575363,0.39451,2536.4,2536.2,0.39453]
[1729699575557,0.39451,2536.4,2536.1,3.2078]
[1729699575765,0.39451,2536.4,2536.3,0.39453]
[1729699576171,4.66061008,2536.4,2536.3,0.39453]
[1729699576471,4.26610008,2536.4,2536.3,0.39453]
[1729699576870,4.89572393,2536.5,2536.3,0.39453]
[1729699577068,4.1558,2536.6,2536.1,3.2078]
[1729699577273,0.39452,2536.4,2536.2,0.39453]
[1729699577460,4.89573393,2536.4,2536.2,0.39454]
[1729699577667,0.39452,2536.4,2536.3,3.2078]
[1729699577871,4.1558,2536.6,2536.3,3.2078]
[1729699578172,4.40099986,2536.4,2536.3,3.60232]
[1729699578477,4.1558,2536.6,2536.3,3.2078]
[1729699578666,4.1558,2536.6,2536.0,1.0448]
[1729699578667,5.14202,2536.6,2536.1,0.39455]
[1729699578869,4.35910519,2536.4,2536.0,1.0448]
[1729699579068,0.39453,2536.3,2536.1,0.39455]
[1729699579370,4.35910519,2536.2,2536.1,0.39455]
[1729699579868,4.35910519,2536.2,2536.1,0.39456]
[1729699580272,4.75364519,2536.2,2536.1,0.39456]
[1729699580574,4.75364519,2536.2,2536.0,1.0448]
[1729699580575,4.43788197,2536.5,2536.0,1.0448]
[1729699580777,0.39453,2536.3,2536.2,0.39454]
[1729699581270,4.2740571,2536.3,2536.2,0.39454]
[1729699581473,4.2740571,2536.3,2536.2,7.41774]
[1729699581671,1.0171,2536.7,2536.6,0.39448]
[1729699582073,5.14921648,2536.7,2536.6,0.39448]
[1729699582578,4.13211648,2536.7,2536.6,0.39448]
[1729699583877,0.39445,2536.8,2536.6,0.39447]
[1729699583878,4.72782986,2536.8,2536.6,0.39447]
[1729699584070,1.026,2536.9,2536.6,0.39447]
[1729699584271,4.55835957,2536.7,2536.6,0.39447]
[1729699584576,0.39446,2536.8,2536.6,0.39447]
[1729699584577,4.95281957,2536.8,2536.6,0.39447]
[1729699584774,0.39446,2536.8,2536.6,0.39447]
[1729699584963,4.52151071,2536.7,2536.6,0.39448]
[1729699585167,4.91597071,2536.7,2536.6,0.39448]
[1729699585369,4.52151071,2536.7,2536.6,0.39448]
[1729699585572,0.39448,2536.6,2536.5,1.49209]
[1729699585777,0.39446,2536.8,2536.6,0.39447]
[1729699585976,0.39446,2536.8,2536.7,3.2078]
[1729699586274,4.50497484,2536.8,2536.7,3.2078]
[1729699586973,4.50497484,2536.8,2536.7,3.60226]
[1729699587175,4.50497484,2536.8,2536.7,3.2078]
[1729699587376,4.11051484,2536.8,2536.7,3.60226]
[1729699587980,4.11051484,2536.8,2536.7,4.69396]
[1729699591877,4.11051484,2536.8,2536.7,1.48616]
[1729699592280,0.39448,2536.6,2536.5,2.1084]
[1729699592472,0.39448,2536.6,2536.5,1.0976]
[1729699592780,4.95825239,2536.6,2536.5,1.0976]
[1729699593081,4.56377239,2536.6,2536.5,1.4921]
[1729699593582,4.95825239,2536.6,2536.5,1.4921]
[1729699593774,0.39448,2536.6,2536.5,1.0976]
[1729699593975,0.39448,2536.6,2536.5,1.4921]
[1729699593976,4.95329039,2536.6,2536.5,1.4921]
[1729699594474,4.95329039,2536.6,2536.5,1.0976]
[1729699594681,4.95329039,2536.6,2536.5,1.4921]
[1729699594877,4.55881039,2536.6,2536.5,1.4921]
[1729699595074,4.95329039,2536.6,2536.5,1.4921]
[1729699595271,0.39448,2536.6,2536.5,1.4921]
[1729699595472,4.193927,2536.6,2536.4,3.2078]
[1729699595674,4.193927,2536.6,2536.2,1.48483]
[1729699595675,0.39453,2536.3,2536.2,1.48483]
[1729699595883,0.39453,2536.3,2536.1,1.0534]
[1729699595884,0.39454,2536.2,2536.1,1.0534]
[1729699596180,5.67678807,2536.2,2536.1,1.0534]
[1729699596573,5.28224807,2536.2,2536.1,1.44796]
[1729699596776,5.28224807,2536.2,2536.1,7.73576]
[1729699596777,4.20804807,2536.2,2536.1,7.73576]
[1729699597172,0.39451,2536.4,2536.1,8.2044]
[1729699597481,0.39451,2536.4,2536.3,0.39453]
[1729699597679,0.39449,2536.6,2536.5,0.39448]
[1729699597985,0.39449,2536.6,2536.4,3.60231]
[1729699597986,0.39451,2536.5,2536.4,3.60231]
[1729699598176,4.31893055,2536.6,2536.4,3.2078]
[1729699598377,4.31893055,2536.5,2536.4,3.60231]
[1729699598678,4.71342055,2536.6,2536.5,0.39449]
[1729699598877,0.39449,2536.6,2536.5,0.39449]
[1729699599077,4.49864539,2536.6,2536.5,0.39449]
[1729699599582,4.10415539,2536.6,2536.2,1.0238]
[1729699599780,4.10415539,2536.6,2536.5,0.3945]
[1729699600776,4.49864539,2536.6,2536.4,0.3945]
[1729699600976,4.49864539,2536.6,2536.2,1.0238]
[1729699601173,4.10415539,2536.6,2536.5,0.3945]
[1729699601585,4.49863539,2536.6,2536.5,0.3945]
[1729699601884,0.3945,2536.5,2536.4,0.3945]
[1729699602080,0.3945,2536.5,2536.1,4.2612]
[1729699602281,0.39453,2536.4,2536.1,4.2612]
[1729699602481,0.39453,2536.4,2536.3,0.39453]
[1729699602883,4.80822913,2536.4,2536.3,0.39453]
[1729699603084,4.80822913,2536.4,2536.1,4.2612]
[1729699603286,4.80822913,2536.4,2536.1,4.65574]
[1729699603479,0.39453,2536.3,2536.1,4.65574]
[1729699603783,4.41369913,2536.2,2536.1,4.65574]
[1729699603988,4.41369913,2536.2,2535.8,3.2078]
[1729699604198,6.1619,2536.1,2535.5,1.0846]
[1729699604481,0.39464,2535.6,2535.5,1.0846]
[1729699605493,0.39467,2535.4,2535.2,0.39469]
[1729699606082,4.37023909,2535.3,2535.2,0.39469]
[1729699608188,4.37023909,2535.3,2535.1,6.2878]
[1729699608385,23.66235,2537.7,2535.3,0.39468]
[1729699608386,0.39467,2535.4,2535.3,0.39468]
[1729699609086,3.08233,2535.8,2535.3,3.944]
[1729699609291,0.39467,2535.4,2535.3,0.39468]
[1729699609687,0.39467,2535.4,2535.3,4.33868]
[1729699610083,0.39467,2535.4,2535.3,0.39468]
[1729699610281,0.39467,2535.4,2535.1,6.2878]
[1729699610488,0.39468,2535.3,2535.2,0.39468]
[1729699610896,0.39468,2535.3,2535.2,4.33868]
[1729699611186,0.39468,2535.4,2535.3,0.39467]
[1729699611389,0.39467,2535.4,2535.3,0.39467]
[1729699611592,0.39469,2535.3,2535.2,0.39469]
[1729699612986,0.3947,2535.2,2535.1,4.3004]
[1729699613389,0.3947,2535.2,2535.1,3.2078]
[1729699613390,4.94090049,2535.2,2535.1,3.2078]
[1729699615891,4.94090049,2535.2,2534.7,1.98894]
[1729699615892,0.39476,2534.8,2534.7,3.60257]
[1729699616290,2.0469,2535.1,2534.7,44.0078]
[1729699616490,1.0225,2535.0,2534.7,44.0078]
[1729699616796,0.39476,2534.8,2534.7,44.40256]
[1729699617089,5.43008702,2535.0,2534.7,44.0078]
[1729699617289,5.43008702,2535.0,2534.7,40.8]
[1729699617693,5.43008702,2535.0,2534.7,44.0078]
[1729699617891,4.40758702,2535.0,2534.8,3.08]
[1729699618490,2.1736,2535.3,2534.9,3.08]
[1729699618688,2.1736,2535.3,2535.0,3.2078]
[1729699618890,4.14447747,2535.2,2535.1,1.0475]
[1729699619093,4.14447747,2535.2,2535.1,41.8475]
[1729699619291,4.14447747,2535.2,2535.1,3.2078]
[1729699619898,4.14447747,2535.2,2535.0,0.9979]
[1729699620098,4.14447747,2535.2,2534.8,1.0475]
[1729699621297,4.14447747,2535.2,2534.9,1.0277]
[1729699623695,4.14447747,2535.2,2534.8,1.0475]
[1729699623898,4.14447747,2535.2,2534.7,3.2078]
[1729699624096,3.08,2535.1,2534.7,3.2078]
[1729699624399,2.1736,2535.3,2534.7,3.2078]
[1729699624400,4.55784295,2535.0,2534.7,3.2078]
[1729699624603,7.63784295,2535.0,2534.4,2.0535]
[1729699624899,2.0623,2534.9,2534.4,2.0535]
[1729699625094,6.62021679,2534.9,2534.4,2.0535]
[1729699625289,1.0523,2534.8,2534.4,2.0535]
[1729699625599,4.55791679,2534.7,2534.4,2.0535]
[1729699626703,4.55791679,2534.7,2534.6,3.2078]
[1729699627698,3.2078,2535.6,2534.6,10.2334]
[1729699627901,3.2078,2535.6,2535.3,3.08]
[1729699628207,3.2078,2535.6,2534.9,3.2078]
[1729699628208,3.2078,2535.6,2535.5,3.08]
[1729699628398,4.2088,2536.1,2535.5,6.2878]
[1729699628704,4.43019105,2536.0,2535.5,7.3613]
[1729699630009,4.43019105,2536.0,2535.7,3.08]
[1729699630205,4.43019105,2536.0,2535.9,3.08]
[1729699630503,6.2968,2536.8,2535.9,3.08]
[1729699630695,6.2968,2536.8,2536.3,3.2078]
[1729699630897,4.2906021,2536.7,2536.4,3.08]
[1729699631095,4.2906021,2536.7,2536.3,3.2078]
[1729699632303,4.2906021,2536.7,2536.2,3.2078]
[1729699632304,3.08,2536.6,2536.2,3.2078]
[1729699632504,4.2906021,2536.7,2536.2,3.2078]
[1729699632710,9.3768,2536.8,2536.2,3.2078]
[1729699632711,4.14716167,2536.5,2536.2,3.2078]
[1729699632904,4.14716167,2536.7,2536.2,3.2078]
[1729699633099,9.3768,2536.8,2536.2,4.2597]
[1729699633505,4.34394453,2536.7,2536.2,4.2597]
[1729699634009,0.39448,2536.6,2536.3,0.39453]
[1729699634211,4.34394453,2536.7,2536.2,4.2597]
[1729699634404,4.30980135,2536.5,2536.2,4.2597]
[1729699634710,4.30980135,2536.7,2536.2,4.2597]
[1729699634908,0.3945,2536.5,2536.3,0.39452]
[1729699635301,4.2410127,2536.7,2536.2,4.2597]
[1729699635302,0.39453,2536.3,2536.2,4.2597]
[1729699636004,0.39453,2536.3,2536.2,3.2078]
[1729699637102,0.39457,2536.0,2535.9,3.2078]
[1729699637504,0.39457,2536.0,2535.9,7.151]
[1729699637703,0.39457,2536.1,2536.0,0.39457]
[1729699637908,0.39457,2536.0,2535.9,3.60238]
[1729699638313,0.39457,2536.0,2535.9,7.54558]
[1729699638707,0.98625,2536.5,2535.9,7.151]
[1729699638908,0.98625,2536.5,2535.9,3.2078]
[1729699639214,0.39457,2536.1,2536.0,0.39457]
[1729699639809,0.98628,2536.4,2535.9,3.2078]
[1729699640009,0.39457,2536.0,2535.9,3.60238]
[1729699640211,0.39457,2536.0,2535.9,3.2078]
[1729699640518,4.92994258,2536.0,2535.9,3.2078]
[1729699641216,4.92994258,2536.0,2535.8,3.2078]
[1729699641217,4.53537258,2536.0,2535.8,3.2078]
[1729699641714,4.53537258,2536.0,2535.5,4.1723]
[1729699641715,4.13869089,2536.1,2535.9,3.2078]
[1729699641905,2.0918,2536.2,2535.9,3.2078]
[1729699642109,4.40168138,2536.1,2535.9,3.2078]
[1729699642816,4.40168138,2536.1,2536.0,1.0923]
[1729699643211,4.4326204,2536.2,2536.0,5.0355]
[1729699643409,3.2078,2536.5,2536.0,1.0923]
[1729699643606,4.4326204,2536.4,2536.0,1.0923]
[1729699643804,3.2078,2536.5,2536.0,1.0923]
[1729699644210,4.16652294,2536.4,2536.0,1.0923]
[1729699644814,4.16652294,2536.4,2536.0,4.3001]
[1729699645215,4.53576722,2536.5,2536.0,4.3001]
[1729699645518,6.3895,2536.6,2536.2,3.08]
[1729699645713,4.53576722,2536.5,2536.2,3.08]
[1729699645917,4.53576722,2536.5,2536.1,1.0141]
[1729699646422,4.53576722,2536.5,2536.0,4.3001]
[1729699647018,0.98628,2536.4,2536.0,4.3001]
[1729699647209,0.98628,2536.4,2536.0,4.69467]
[1729699647210,0.39456,2536.1,2536.0,4.69467]
[1729699647409,0.39455,2536.2,2536.1,0.39455]
[1729699647612,0.39456,2536.1,2536.0,4.69467]
[1729699648016,4.19092994,2536.2,2536.0,4.69467]
[1729699648017,4.58547994,2536.2,2536.1,0.39456]
[1729699648217,0.39454,2536.3,2536.2,0.39454]
[1729699648417,6.3895,2536.6,2536.0,7.3801]
[1729699648617,4.25954443,2536.3,2536.0,7.3801]
[1729699648820,0.39454,2536.2,2536.1,0.39455]
[1729699649022,4.25954443,2536.4,2536.0,7.3801]